[Event "NSV chessemy IM 2022"]
[Site "Braunschweig"]
[Date "2022.08.02"]
[Round "4.1"]
[White "Brynell, Stellan"]
[Black "Sumets, Andrey"]
[Result "1/2-1/2"]
[ECO "D45"]
[WhiteElo "2387"]
[BlackElo "2542"]
[Annotator "RC"]
[PlyCount "33"]
[EventDate "2022.07.30"]
[EventType "tourn"]
[EventCountry "GER"]
[SourceTitle "playchess.com"]
[Source "ChessBase"]
[SourceQuality "1"]
[TimeControl "40/5400+30:1800+30"]

1. d4 {[%emt 0:00:22]} Nf6 {[%emt 0:00:04]} 2. Nf3 {[%emt 0:00:10]} d5 {[%emt 0:00:06]} 3. c4 {[%emt 0:00:08]} e6 {[%emt 0:00:02]} 4. Nc3 {[%emt 0:00:29]} c6 {[%emt 0:00:05]} 5. e3 {[%emt 0:00:20]} Nbd7 {[%emt 0:00:51]} 6. Be2 {[%emt 0:00:31]} Bd6 {[%emt 0:00:20]} 7. O-O {[%emt 0:00:39]} O-O {[%emt 0:00:08]} 8. b3 {[%emt 0:00:05]} Ne4 {[%emt 0:01:53]} 9. Bb2 {[%emt 0:01:00]} f5 {[%emt 0:00:07]} 10. Rc1 {[%emt 0:00:52]} Qe7 {[%emt 0:01:57]} 11. Rc2 {[%emt 0:35:18]} a6 {[%emt 0:02:03]} 12. Qc1 {[%emt 0:02:04]} Nxc3 {[%emt 0:35:06]} 13. Bxc3 {[%emt 0:00:33]} Nf6 {[%emt 0:00:11]} 14. Ne5 {[%emt 0:05:26]} Bd7 {[%emt 0:00:08]} 15. f3 {[%emt 0:02:48]} Be8 {[%emt 0:00:55]} 16. Bd3 {[%emt 0:01:38]} Nd7 {[%emt 0:03:18]} 17. Nxd7 {[%emt 0:03:07]} 1/2-1/2

[Event "NSV chessemy IM 2022"]
[Site "Braunschweig"]
[Date "2022.08.02"]
[Round "4.2"]
[White "Sriram, Jha"]
[Black "Fischer, Daniel"]
[Result "1/2-1/2"]
[ECO "E46"]
[WhiteElo "2361"]
[BlackElo "2351"]
[Annotator "RC"]
[PlyCount "60"]
[EventDate "2022.07.30"]
[EventType "tourn"]
[EventCountry "GER"]
[SourceTitle "playchess.com"]
[Source "ChessBase"]
[SourceQuality "1"]
[TimeControl "40/5400+30:1800+30"]

1. d4 {[%emt 0:01:53]} Nf6 {[%emt 0:00:06]} 2. c4 {[%emt 0:00:35]} e6 {[%emt 0:00:06]} 3. Nc3 {[%emt 0:01:10]} Bb4 {[%emt 0:00:05]} 4. e3 {[%emt 0:01:02]} O-O {[%emt 0:00:14]} 5. Nge2 {[%emt 0:01:07]} Re8 {[%emt 0:00:19]} 6. a3 {[%emt 0:00:21]} Bf8 {[%emt 0:00:05]} 7. e4 {[%emt 0:02:40]} d5 {[%emt 0:00:24]} 8. e5 {[%emt 0:00:05]} Nfd7 {[%emt 0:00:06]} 9. h4 {[%emt 0:00:03]} c5 {[%emt 0:15:41]} 10. Bg5 {[%emt 0:00:05]} f6 {[%emt 0:14:08]} 11. exf6 {[%emt 0:00:05]} gxf6 {[%emt 0:00:07]} 12. Bd2 {[%emt 0:00:04]} Nc6 {[%emt 0:06:01]} 13. dxc5 {[%emt 0:01:07]} Nxc5 {[%emt 0:05:33]} 14. Be3 {[%emt 0:00:16]} dxc4 {[%emt 0:01:45]} 15. Nf4 {[%emt 0:00:05]} Qxd1+ {[%emt 0:14:38]} 16. Rxd1 {[%emt 0:00:04]} Ne5 {[%emt 0:02:01]} 17. Bd4 {[%emt 0:31:57]} Rd8 {[%emt 0:08:16]} 18. Rh3 {[%emt 0:17:43]} Ned3+ {[%emt 0:02:44]} 19. Nxd3 {[%emt 0:00:53]} Rxd4 {[%emt 0:00:31]} 20. Nxc5 {[%emt 0:01:23]} Rxd1+ {[%emt 0:00:20]} 21. Kxd1 {[%emt 0:03:55]} Bxc5 {[%emt 0:00:06]} 22. Bxc4 {[%emt 0:00:40]} Bxf2 {[%emt 0:04:30]} 23. Ne4 {[%emt 0:01:53]} Bd4 {[%emt 0:01:46]} 24. Rd3 {[%emt 0:01:44]} Be5 {[%emt 0:00:11]} 25. Rd8+ {[%emt 0:03:05]} Kf7 {[%emt 0:00:12]} 26. b4 {[%emt 0:03:37]} Bc7 {[%emt 0:04:50]} 27. Rh8 {[%emt 0:02:45]} Kg7 {[%emt 0:00:14]} 28. Re8 {[%emt 0:00:02]} Kf7 {[%emt 0:00:12]} 29. Rh8 {[%emt 0:00:20]} Kg7 {[%emt 0:00:04]} 30. Re8 {[%emt 0:00:12]} Kf7 {[%emt 0:00:07]} 1/2-1/2

[Event "NSV chessemy IM 2022"]
[Site "Braunschweig"]
[Date "2022.08.02"]
[Round "4.3"]
[White "Pubantz, Jan"]
[Black "Chennaoui, Yasin"]
[Result "1-0"]
[ECO "A55"]
[WhiteElo "2269"]
[BlackElo "2127"]
[Annotator "RC"]
[PlyCount "103"]
[EventDate "2022.07.30"]
[EventType "tourn"]
[EventCountry "GER"]
[SourceTitle "playchess.com"]
[Source "ChessBase"]
[SourceQuality "1"]
[TimeControl "40/5400+30:1800+30"]

1. d4 {[%emt 0:00:02]} d6 {[%emt 0:00:38]} 2. Nf3 {[%emt 0:00:16]} Nd7 {[%emt 0:00:06]} 3. c4 {[%emt 0:00:59]} e5 {[%emt 0:00:21]} 4. Nc3 {[%emt 0:00:09]} Ngf6 {[%emt 0:00:08]} 5. e4 {[%emt 0:00:13]} Be7 {[%emt 0:02:27]} 6. Be2 {[%emt 0:00:15]} O-O {[%emt 0:00:07]} 7. O-O {[%emt 0:00:04]} c6 {[%emt 0:00:02]} 8. Qc2 {[%emt 0:00:25]} a6 {[%emt 0:00:13]} 9. h3 {[%emt 0:07:15]} b5 {[%emt 0:00:40]} 10. Be3 {[%emt 0:01:21]} b4 {[%emt 0:08:32]} 11. Na4 {[%emt 0:01:40]} c5 {[%emt 0:00:06]} 12. d5 {[%emt 0:11:01]} Ne8 {[%emt 0:03:38]} 13. Bd3 {[%emt 0:05:35]} g6 {[%emt 0:02:59]} 14. Kh2 {[%emt 0:13:03]} Ng7 {[%emt 0:05:41]} 15. Bh6 {[%emt 0:02:12]} Nf6 {[%emt 0:08:30]} 16. g4 {[%emt 0:13:29]} Kh8 {[%emt 0:30:52]} 17. Rg1 {[%emt 0:05:10]} Ng8 {[%emt 0:00:10]} 18. Be3 {[%emt 0:04:58]} f5 {[%emt 0:09:04]} 19. gxf5 {[%emt 0:01:34]} gxf5 {[%emt 0:00:02]} 20. Rxg7 {[%emt 0:01:56]} Kxg7 {[%emt 0:00:10]} 21. exf5 {[%emt 0:00:18]} Ra7 {[%emt 0:03:26]} 22. Rg1+ {[%emt 0:02:57]} Kh8 {[%emt 0:00:22]} 23. Ng5 {[%emt 0:03:06]} Bxg5 {[%emt 0:00:59]} 24. Bxg5 {[%emt 0:00:20]} Nf6 {[%emt 0:00:03]} 25. f4 {[%emt 0:01:43]} e4 {[%emt 0:09:44]} 26. Bxe4 {[%emt 0:01:44]} Re7 {[%emt 0:00:56]} 27. Bd3 {[%emt 0:01:37]} Bd7 {[%emt 0:00:50]} 28. b3 {[%emt 0:00:55]} Rg7 {[%emt 0:04:29]} 29. Re1 {[%emt 0:01:17]} Re7 {[%emt 0:00:23]} 30. Rg1 {[%emt 0:02:07]} Re3 {[%emt 0:03:32]} 31. Nb2 {[%emt 0:01:27]} Qe7 {[%emt 0:00:39]} 32. Nd1 {[%emt 0:01:15]} Re1 {[%emt 0:00:26]} 33. Rg2 {[%emt 0:01:26]} Qf7 {[%emt 0:02:55]} 34. Nf2 {[%emt 0:02:19]} h6 {[%emt 0:03:33]} 35. Bxh6 {[%emt 0:05:30]} Rg8 {[%emt 0:00:07]} 36. Bg5 {[%emt 0:08:52]} Re3 {[%emt 0:01:03]} 37. Qb2 {[%emt 0:00:00]} Rf8 {[%emt 0:00:26]} 38. Bxf6+ {[%emt 0:00:00]} Qxf6 {[%emt 0:00:21]} 39. Qxf6+ {[%emt 0:00:00]} Rxf6 {[%emt 0:00:01]} 40. Ng4 {[%emt 0:00:00]} Rxd3 {[%emt 0:01:09]} 41. Nxf6 {[%emt 0:28:46]} Rxh3+ {[%emt 0:00:58]} 42. Kxh3 {[%emt 0:00:00]} Bxf5+ {[%emt 0:00:02]} 43. Kh2 {[%emt 0:00:00]} Bh7 {[%emt 0:00:03]} 44. Nxh7 {[%emt 0:00:00]} Kxh7 {[%emt 0:00:02]} 45. f5 {[%emt 0:00:00]} a5 {[%emt 0:00:02]} 46. f6 {[%emt 0:00:00]} a4 {[%emt 0:00:04]} 47. bxa4 {[%emt 0:00:00]} b3 {[%emt 0:00:05]} 48. axb3 {[%emt 0:00:00]} Kh6 {[%emt 0:00:06]} 49. f7 {[%emt 0:00:00]} Kh7 {[%emt 0:00:05]} 50. a5 {[%emt 0:00:00]} Kh6 {[%emt 0:00:13]} 51. f8=Q+ {[%emt 0:00:00]} Kh5 {[%emt 0:00:04]} 52. Qh8# {[%emt 0:00:00]} 1-0

[Event "NSV chessemy IM 2022"]
[Site "Braunschweig"]
[Date "2022.08.02"]
[Round "4.4"]
[White "Knuedel, Torben"]
[Black "Voege, Tobias"]
[Result "1-0"]
[ECO "C10"]
[WhiteElo "2210"]
[BlackElo "2272"]
[Annotator "RC"]
[PlyCount "81"]
[EventDate "2022.07.30"]
[EventType "tourn"]
[EventCountry "GER"]
[SourceTitle "playchess.com"]
[Source "ChessBase"]
[SourceQuality "1"]
[TimeControl "40/5400+30:1800+30"]

1. e4 {[%emt 0:00:02]} e6 {[%emt 0:00:05]} 2. d4 {[%emt 0:00:04]} d5 {[%emt 0:00:04]} 3. Nc3 {[%emt 0:00:03]} Nc6 {[%emt 0:00:03]} 4. Bf4 {[%emt 0:04:08]} Bb4 {[%emt 0:07:51]} 5. Nge2 {[%emt 0:01:06]} dxe4 {[%emt 0:04:05]} 6. a3 {[%emt 0:01:54]} Ba5 {[%emt 0:06:16]} 7. b4 {[%emt 0:08:04]} Bb6 {[%emt 0:00:37]} 8. Na4 {[%emt 0:00:21]} Nf6 {[%emt 0:27:41]} 9. c4 {[%emt 0:01:02]} Bxd4 {[%emt 0:02:28]} 10. Nxd4 {[%emt 0:00:13]} Nxd4 {[%emt 0:02:31]} 11. Be5 {[%emt 0:02:57]} Nc6 {[%emt 0:01:57]} 12. Qxd8+ {[%emt 0:00:09]} Kxd8 {[%emt 0:03:04]} 13. O-O-O+ {[%emt 0:00:17]} Bd7 {[%emt 0:02:08]} 14. Bc3 {[%emt 0:07:24]} Kc8 {[%emt 0:10:21]} 15. Nc5 {[%emt 0:13:17]} e5 {[%emt 0:03:48]} 16. f4 {[%emt 0:09:06]} Bg4 {[%emt 0:12:14]} 17. fxe5 {[%emt 0:01:17]} Nd7 {[%emt 0:13:47]} 18. Nxd7 {[%emt 0:11:42]} Bxd1 {[%emt 0:00:00]} 19. e6 {[%emt 0:01:44]} fxe6 {[%emt 0:00:00]} 20. Nc5 {[%emt 0:35:40]} Bg4 {[%emt 0:00:00]} 21. b5 {[%emt 0:00:00]} Nd8 {[%emt 0:00:00]} 22. h3 {[%emt 0:00:00]} Bf5 {[%emt 0:00:00]} 23. g4 {[%emt 0:00:00]} Bg6 {[%emt 0:00:00]} 24. h4 {[%emt 0:00:00]} h5 {[%emt 0:00:00]} 25. Bxg7 {[%emt 0:00:00]} Rg8 {[%emt 0:00:00]} 26. gxh5 {[%emt 0:00:00]} Bxh5 {[%emt 0:00:00]} 27. Rg1 {[%emt 0:00:00]} e3 {[%emt 0:00:53]} 28. Bh3 {[%emt 0:00:00]} e2 {[%emt 0:01:51]} 29. Kd2 {[%emt 0:00:00]} Re8 {[%emt 0:01:07]} 30. Rg5 {[%emt 0:00:00]} Bf3 {[%emt 0:00:27]} 31. Rg3 {[%emt 0:00:00]} Bh5 {[%emt 0:00:30]} 32. Bg2 {[%emt 0:00:00]} Nf7 {[%emt 0:01:51]} 33. Bxb7+ {[%emt 0:00:00]} Kb8 {[%emt 0:00:03]} 34. Bf6 {[%emt 0:00:00]} Nd6 {[%emt 0:00:38]} 35. Ba6 {[%emt 0:00:00]} Nxc4+ {[%emt 0:00:28]} 36. Ke1 {[%emt 0:00:00]} Nb6 {[%emt 0:00:24]} 37. Rg7 {[%emt 0:02:42]} Rf8 {[%emt 0:01:01]} 38. Nxe6 {[%emt 0:01:28]} Re8 {[%emt 0:00:25]} 39. Be5 {[%emt 0:00:52]} Nd5 {[%emt 0:00:14]} 40. Rxc7 {[%emt 0:00:45]} Ne3 {[%emt 0:00:25]} 41. Rc8# {[%emt 0:30:06]} 1-0

[Event "NSV chessemy IM 2022"]
[Site "Braunschweig"]
[Date "2022.08.02"]
[Round "4.5"]
[White "Colbow, Collin"]
[Black "von Mettenheim, Johannes"]
[Result "1/2-1/2"]
[ECO "B11"]
[WhiteElo "2325"]
[BlackElo "2253"]
[Annotator "RC"]
[PlyCount "68"]
[EventDate "2022.07.30"]
[EventType "tourn"]
[EventCountry "GER"]
[SourceTitle "playchess.com"]
[Source "ChessBase"]
[SourceQuality "1"]
[TimeControl "40/5400+30:1800+30"]

1. e4 {[%emt 0:00:03]} c6 {[%emt 0:00:04]} 2. Nf3 {[%emt 0:00:07]} d5 {[%emt 0:00:14]} 3. Nc3 {[%emt 0:00:12]} dxe4 {[%emt 0:00:24]} 4. Nxe4 {[%emt 0:00:05]} Nf6 {[%emt 0:00:26]} 5. Qe2 {[%emt 0:00:04]} Nxe4 {[%emt 0:00:20]} 6. Qxe4 {[%emt 0:00:05]} Nd7 {[%emt 0:00:36]} 7. Bc4 {[%emt 0:00:07]} Nf6 {[%emt 0:00:38]} 8. Ne5 {[%emt 0:00:06]} e6 {[%emt 0:00:06]} 9. Qe2 {[%emt 0:00:10]} b5 {[%emt 0:00:28]} 10. Bd3 {[%emt 0:00:54]} Qc7 {[%emt 0:01:17]} 11. a4 {[%emt 0:01:41]} Bd6 {[%emt 0:00:16]} 12. Nxc6 {[%emt 0:00:05]} b4 {[%emt 0:00:57]} 13. Nd4 {[%emt 0:00:15]} a6 {[%emt 0:00:16]} 14. Nf5 {[%emt 0:00:06]} Bb7 {[%emt 0:00:25]} 15. Nxd6+ {[%emt 0:00:15]} Qxd6 {[%emt 0:00:06]} 16. O-O {[%emt 0:00:21]} h5 {[%emt 0:00:04]} 17. Qe3 {[%emt 0:01:49]} Rd8 {[%emt 0:00:38]} 18. b3 {[%emt 0:01:48]} Nd5 {[%emt 0:00:27]} 19. Qe4 {[%emt 0:00:54]} h4 {[%emt 0:00:14]} 20. Bb2 {[%emt 0:34:47]} h3 {[%emt 0:03:06]} 21. g3 {[%emt 0:01:04]} Rd7 {[%emt 0:09:41]} 22. Qe5 {[%emt 0:12:02]} Qxe5 {[%emt 0:10:06]} 23. Bxe5 {[%emt 0:00:04]} f6 {[%emt 0:00:16]} 24. Bb2 {[%emt 0:02:42]} Ne7 {[%emt 0:00:35]} 25. f4 {[%emt 0:14:31]} Kf7 {[%emt 0:01:59]} 26. Rae1 {[%emt 0:04:49]} Rc8 {[%emt 0:03:27]} 27. Rc1 {[%emt 0:07:03]} Rcd8 {[%emt 0:17:09]} 28. Rce1 {[%emt 0:10:24]} Rxd3 {[%emt 0:13:03]} 29. cxd3 {[%emt 0:00:04]} Rxd3 {[%emt 0:00:06]} 30. Re3 {[%emt 0:00:08]} Rxd2 {[%emt 0:00:21]} 31. Rf2 {[%emt 0:00:04]} Rd1+ {[%emt 0:00:55]} 32. Rf1 {[%emt 0:00:04]} Rd2 {[%emt 0:00:26]} 33. Rf2 {[%emt 0:00:03]} Rd1+ {[%emt 0:00:16]} 34. Rf1 {[%emt 0:00:09]} Rd2 {[%emt 0:00:09]} 1/2-1/2

[Event "NSV chessemy IM 2022"]
[Site "Braunschweig"]
[Date "2022.08.04"]
[Round "6.1"]
[White "Brynell, Stellan"]
[Black "Sriram, Jha"]
[Result "1/2-1/2"]
[ECO "D13"]
[WhiteElo "2387"]
[BlackElo "2361"]
[Annotator "TA"]
[PlyCount "35"]
[EventDate "2022.07.30"]
[EventType "tourn"]
[EventCountry "GER"]
[SourceTitle "playchess.com"]
[Source "ChessBase"]
[SourceQuality "1"]
[TimeControl "40/5400+30:1800+30"]

{[%evp 16,22,21,18,26,21,33,18,23]} 1. d4 {[%emt 0:00:04]} d5 {[%emt 0:00:05]} 2. Nf3 {[%emt 0:00:18]} Nf6 {[%emt 0:00:17]} 3. c4 {[%emt 0:00:15]} c6 {[%emt 0:00:03]} 4. cxd5 {[%emt 0:00:25]} cxd5 {[%emt 0:00:05]} 5. Nc3 {[%emt 0:00:05]} Nc6 {[%emt 0:00:03]} 6. Bf4 {[%emt 0:00:07]} a6 {[%emt 0:03:05]} 7. Ne5 {[%emt 0:00:14]} e6 {[%emt 0:02:19]} 8. e3 {[%emt 0:01:30]} Nxe5 {[%emt 0:04:27]} 9. Bxe5 {[%emt 0:00:12]} Bd6 {[%emt 0:00:49] D13: Slav Defence: Exchange variation without ...Bf5.} 10. Bd3 {[%emt 0:01:00]} O-O {[%emt 0:03:02]} 11. Bxd6 {[%emt 0:25:09]} Qxd6 {[%emt 0:00:07] [#] An uneventful encounter.} {Predecessor:} 12. f4 $146 b5 13. O-O Bb7 14. a4 b4 15. Na2 a5 16. Nc1 Ba6 17. Rf2 Rfc8 18. Nb3 {1-0 (35) Milosevic,A (2272)-Mickovic,S (2102) Serbia 2017} 1/2-1/2

[Event "NSV chessemy IM 2022"]
[Site "Braunschweig"]
[Date "2022.08.04"]
[Round "6.2"]
[White "Pubantz, Jan"]
[Black "Sumets, Andrey"]
[Result "0-1"]
[ECO "E39"]
[WhiteElo "2269"]
[BlackElo "2542"]
[Annotator "TA"]
[PlyCount "106"]
[EventDate "2022.07.30"]
[EventType "tourn"]
[EventCountry "GER"]
[SourceTitle "playchess.com"]
[Source "ChessBase"]
[SourceQuality "1"]
[TimeControl "40/5400+30:1800+30"]

{[%evp 14,106,48,32,37,35,32,25,39,29,38,29,31,28,20,17,25,9,8,0,0,-20,43,36,35,26,33,27,52,11,56,0,0,0,32,30,60,53,80,33,64,-19,-19,-19,-19,-6,-21,-14,-12,-14,-22,-14,-14,-14,15,12,15,8,29,-36,-37,-37,-36,-44,-43,-56,-47,-56,-47,-37,-45,-105,-104,-95,-54,-192,-208,-1204,-1216,-1153,-1125,-1064,-1027,-970,-918,-824,-788,-11854,-11847,-5270,-5127,-29993,-29994,-29994,-29990]} 1. d4 {[%emt 0:00:02]} Nf6 {[%emt 0:00:23]} 2. c4 {[%emt 0:00:05]} e6 {[%emt 0:02:07]} 3. Nc3 {[%emt 0:00:11]} Bb4 {[%emt 0:00:12]} 4. Qc2 {[%emt 0:00:12]} c5 {[%emt 0:00:16]} 5. dxc5 {[%emt 0:01:04]} O-O {[%emt 0:00:24]} 6. Nf3 {[%emt 0:01:06]} Bxc5 {[%emt 0:00:50]} 7. Bg5 {[%emt 0:05:04]} Be7 {[%emt 0:02:12] The main line 7...Be7 scores better than 7...Nc6.} 8. e3 {[%emt 0:06:29]} b6 {[%emt 0:01:48] E39: Nimzo-Indian: Classical: 4...c5 5 dxc5 0-0.} 9. Be2 {[%emt 0:01:40]} Bb7 {[%emt 0:00:18]} 10. O-O {[%emt 0:00:48]} d6 {[%emt 0:21:28] White has an edge.} 11. Rfd1 {[%emt 0:02:09]} Nbd7 {[%emt 0:03:06]} 12. Rac1 {[%emt 0:10:02]} a6 {[%emt 0:00:26]} 13. b4 {[%emt 0:07:50]} Qc7 {[%emt 0:02:50]} 14. Qb3 {[%emt 0:04:58]} Rac8 {[%emt 0:00:55]} 15. Nd4 {[%emt 0:02:38]} Ne5 {[%emt 0:02:31][%cal Re5c4] [#]} 16. f3 $146 {[%emt 0:19:27]} (16. b5 {seems wilder.} Rfd8 17. bxa6 Bxa6 18. Ndb5) ({Predecessor:} 16. Nb1 h6 17. Bh4 Ne4 18. Bg3 Nxg3 19. hxg3 Rfd8 20. f4 Nd7 21. Nc3 Nf6 22. Qb1 {½-½ (40) Pilipenko,S (2122)-Kurochkin,V Lvov 2001}) 16... Ng6 {[%emt 0:16:35]} 17. e4 {[%emt 0:08:51]} Rfe8 {[%emt 0:01:40]} ({Black should try} 17... d5 $11 18. exd5 (18. cxd5 Ng4 $15) 18... Qe5) 18. Be3 {[%emt 0:01:28]} Qb8 {[%emt 0:01:23][%cal Od6d5]} 19. Bf2 {[%emt 0:02:38]} Bd8 {[%emt 0:02:31]} 20. Bf1 {[%emt 0:00:27]} Bc7 {[%emt 0:00:42][%cal Od6d5]} 21. g3 {[%emt 0:00:57]} (21. b5 $5 {[%cal Rb5a6]}) 21... h5 {[%emt 0:00:16][%cal Oh5h4]} 22. Bg2 {[%emt 0:03:30]} ({White should play} 22. b5 $14) 22... h4 $11 {[%emt 0:05:39]} 23. b5 {[%emt 0:06:43]} ({Of course not} 23. gxh4 d5 24. cxd5 exd5 $15) 23... hxg3 {[%emt 0:09:18]} 24. hxg3 {[%emt 0:00:13]} a5 {[%emt 0:03:30][%cal Od6d5]} 25. Nc6 {[%emt 0:02:16]} Qa8 {[%emt 0:03:07]} 26. Rc2 {[%emt 0:03:24]} (26. Qb2 $16) 26... Ne7 {[%emt 0:08:05]} 27. Ne2 {[%emt 0:05:48]} (27. Nxe7+ $14 Rxe7 28. Rcd2) 27... Nxc6 {[%emt 0:01:45]} 28. bxc6 {[%emt 0:00:02]} Bxc6 {[%emt 0:00:06]} 29. Nd4 {[%emt 0:00:24]} Nd7 {[%emt 0:03:24]} 30. Nb5 {[%emt 0:01:12]} Nc5 {[%emt 0:02:08]} 31. Nxc7 {[%emt 0:01:52]} Rxc7 {[%emt 0:00:45][%cal Bc8c7,Bc7d7,Bd7d4][%mdl 32]} 32. Bxc5 {[%emt 0:01:55]} dxc5 {[%emt 0:02:13]} 33. Qxb6 {[%emt 0:00:17]} Rec8 {[%emt 0:00:59]} 34. Rcd2 {[%emt 0:00:55]} Ba4 {[%emt 0:01:10]} 35. Rb1 {[%emt 0:00:34]} Be8 {[%emt 0:01:04]} 36. Qd6 {[%emt 0:00:45]} (36. Kf2 $11) 36... Rd7 $15 {[%emt 0:00:24]} 37. Qf4 {[%emt 0:00:03]} e5 {[%emt 0:00:33]} 38. Qe3 {[%emt 0:00:16]} Rd4 {[%emt 0:00:08]} 39. Bh3 {[%emt 0:01:10]} Rcd8 $36 {[%emt 0:00:14][%mdl 2048] Black fights for an advantage.} 40. Rh2 {[%emt 0:00:29]} Qa6 {[%emt 0:01:41] [#] And now ...Rd1+ would win.} 41. Bf1 {[%emt 0:05:08]} Qg6 {[%emt 0:01:02] Inhibits Qg5.} 42. Kf2 {[%emt 0:04:56]} ({Better is} 42. g4 $15) 42... Rd2+ $17 {[%emt 0:06:25]} 43. Be2 {[%emt 0:00:34]} Qd6 {[%emt 0:00:35] Black is more active.} 44. Rhh1 {[%emt 0:13:19] Now White is beyond hope.} (44. Rbh1 $15 f6 45. f4) 44... Rxa2 $19 {[%emt 0:03:35]} 45. Rhd1 $2 {[%emt 0:02:54]} (45. Ra1 Rc2 46. Rhc1 (46. Rxa5 Qd4 $17) 46... Rxc1 47. Rxc1) 45... Qxd1 $1 {[%emt 0:00:18]} 46. Rxd1 {[%emt 0:00:10]} Rxd1 {[%emt 0:00:01]} 47. Qxc5 {[%emt 0:01:55]} Rdd2 {[%emt 0:00:11]} 48. f4 {[%emt 0:02:28]} Rxe2+ {[%emt 0:00:56]} 49. Kf3 {[%emt 0:00:01]} Rf2+ {[%emt 0:03:15]} 50. Kg4 {[%emt 0:00:46]} Bd7+ {[%emt 0:00:51]} 51. f5 {[%emt 0:00:26]} Rae2 {[%emt 0:00:53]} 52. Kg5 {[%emt 0:03:24] [#]} Rxe4 $1 {[%emt 0:03:25][%csl Gd7][%cal Rf2f5]} 53. g4 {[%emt 0:00:24]} Rff4 {[%emt 0:00:57] Weighted Error Value: White=0.57/Black=0.12 (very precise)} 0-1

[Event "NSV chessemy IM 2022"]
[Site "Braunschweig"]
[Date "2022.08.04"]
[Round "6.3"]
[White "Knuedel, Torben"]
[Black "Fischer, Daniel"]
[Result "0-1"]
[ECO "B22"]
[WhiteElo "2210"]
[BlackElo "2351"]
[Annotator "TA"]
[PlyCount "98"]
[EventDate "2022.07.30"]
[EventType "tourn"]
[EventCountry "GER"]
[SourceTitle "playchess.com"]
[Source "ChessBase"]
[SourceQuality "1"]
[TimeControl "40/5400+30:1800+30"]

{[%evp 18,98,15,-4,0,0,16,22,22,18,34,31,28,15,12,8,22,-15,-11,-26,-20,-81,-79,-82,-47,-52,-44,-37,-52,-37,-41,-20,-16,-13,-9,-10,-10,-3,-4,-3,-10,-70,-62,-88,-103,-113,-122,-111,-112,-188,-88,-89,-70,-198,-183,-247,-250,-252,-242,-321,-201,-271,-260,-458,-451,-964,-964,-914,-723,-2033,-1330,-29988,-1191,-29989,-29990,-29990,-29991,-29991,-29992,-29992,-29990,-29990,-29990]} 1. e4 {[%emt 0:00:02]} c5 {[%emt 0:00:05]} 2. Nf3 {[%emt 0:00:03]} e6 {[%emt 0:00:05]} 3. c3 {[%emt 0:00:04]} d5 {[%emt 0:00:48]} 4. exd5 {[%emt 0:00:06]} Qxd5 {[%emt 0:00:10]} 5. Na3 {[%emt 0:00:05]} Nf6 {[%emt 0:02:23]} 6. d4 {[%emt 0:01:01]} Nc6 {[%emt 0:00:31]} 7. Nb5 {[%emt 0:02:11]} Qd8 {[%emt 0:00:06]} 8. dxc5 {[%emt 0:02:41]} Bxc5 {[%emt 0:00:07]} 9. Qxd8+ {[%emt 0:00:56]} Kxd8 {[%emt 0:00:06]} 10. Bg5 {[%emt 0:01:01]} Bd7 {[%emt 0:07:46] B22: Sicilian: 2 c3.} 11. Rd1 {[%emt 0:00:27]} a6 {[%emt 0:10:14]} 12. Nd6 {[%emt 0:04:27]} Bxd6 {[%emt 0:01:21] The position is equal.} 13. Rxd6 {[%emt 0:00:20]} Ke7 {[%emt 0:00:19]} 14. Rd1 {[%emt 0:01:15] [#]} Rhd8 $146 {[%emt 0:04:31]} ({Predecessor:} 14... h6 15. Be3 Rhc8 16. Bc5+ Ke8 17. Be2 Ne5 18. Bd4 Nxf3+ 19. Bxf3 Bc6 20. Bxc6+ Rxc6 21. Bxf6 gxf6 {½-½ (40) Medina,J-Guevara,M (2335) Moscow 1994}) 15. Be2 {[%emt 0:02:40]} e5 {[%emt 0:06:00]} 16. O-O {[%emt 0:04:35]} Be6 {[%emt 0:01:13]} 17. b3 {[%emt 0:06:27]} h6 {[%emt 0:01:43]} 18. Bc1 {[%emt 0:02:56]} Nd5 {[%emt 0:04:09][%cal Bf6d5,Bd5f4,Bf4d3][%mdl 32]} 19. Bb2 {[%emt 0:11:39]} (19. Bd2 $1 $11 {remains equal.}) 19... Nf4 $17 {[%emt 0:01:13]} 20. Rde1 {[%emt 0:00:47]} Bf5 {[%emt 0:13:54] Black is much more active.} 21. Bd1 {[%emt 0:08:44]} f6 {[%emt 0:03:42] And now ...Bd3 would win.} (21... Kf8 $5 {[%cal Rf5d3]} 22. Bc1 (22. Nxe5 Rxd1 23. Rxd1 Nxe5 $15) 22... Bd3 23. Bxf4 Bxf1 24. Nxe5 Nxe5 25. Bxe5 Bb5 $15) 22. g3 $1 {[%emt 0:08:04]} Nd3 {[%emt 0:05:09] Pair of Knights!} 23. Ba3+ {[%emt 0:00:12]} Kf7 {[%emt 0:00:29]} 24. Re3 {[%emt 0:00:44]} Bh3 {[%emt 0:00:49]} 25. Be2 {[%emt 0:01:05] aiming for Rd1.} Bxf1 {[%emt 0:01:25]} 26. Kxf1 {[%emt 0:01:17]} e4 {[%emt 0:01:01]} 27. Rxe4 {[%emt 0:00:16]} Nde5 $36 {[%emt 0:01:23][%mdl 2048] White is under pressure.} 28. Nd4 {[%emt 0:06:22]} b5 {[%emt 0:05:58]} 29. f4 {[%emt 0:14:34]} (29. h4 $11) 29... Nxd4 $15 {[%emt 0:00:12]} 30. cxd4 {[%emt 0:00:15]} Nc6 {[%emt 0:00:45]} 31. Bc5 {[%emt 0:00:13]} f5 {[%emt 0:07:05] Prevents Bg4.} 32. Bh5+ {[%emt 0:08:25] [#]} Kg8 $1 {[%emt 0:00:36]} ({Reject} 32... g6 $6 33. Bxg6+ Kf6 34. Re3 $11) 33. Re5 {[%emt 0:02:47]} Nxd4 {[%emt 0:05:22]} (33... Nxe5 $19 34. fxe5 Rac8) 34. b4 $17 {[%emt 0:01:05]} Rac8 {[%emt 0:01:44]} 35. Kg2 {[%emt 0:02:29] [#] White does not recover from this.} (35. h4 $15) 35... Rc6 $1 $19 {[%emt 0:01:20]} 36. Kh3 {[%emt 0:02:16]} (36. Kf2 {keeps fighting.}) 36... g6 {[%emt 0:03:55]} 37. Bd1 {[%emt 0:00:02]} Rd7 {[%emt 0:00:54]} 38. a4 {[%emt 0:01:05]} Kh7 {[%emt 0:00:50]} 39. axb5 {[%emt 0:01:31]} axb5 {[%emt 0:00:05]} 40. Kh4 $2 {[%emt 0:03:18]} (40. Re3) 40... Re6 {[%emt 0:02:12] ...Rxe5 is the strong threat.} 41. Bf8 {[%emt 0:13:59]} (41. Bxd4 $142 Rxe5 42. Bxe5 Rxd1 43. Kh3) 41... Rxe5 {[%emt 0:04:47]} 42. fxe5 {[%emt 0:00:06][%mdl 4096] Endgame KRN-KB} Nc6 {[%emt 0:00:23][%csl LRd1,LRe5]} 43. Bb3 {[%emt 0:03:48]} Nxe5 {[%emt 0:00:58]} 44. Bc5 {[%emt 0:00:41]} Nf3+ {[%emt 0:01:10]} 45. Kh3 {[%emt 0:00:04]} Rd2 {[%emt 0:00:07][%csl Gf3][%cal Rd2h2] Black mates.} 46. g4 {[%emt 0:00:05]} f4 {[%emt 0:01:47][%csl Gf3][%cal Rd2h2]} 47. g5 {[%emt 0:00:05]} h5 {[%emt 0:01:06][%csl Gf3][%cal Rd2h2]} 48. Bg8+ {[%emt 0:00:15]} Kxg8 {[%emt 0:00:13][%csl Gf3][%cal Rd2h2]} 49. Bf2 {[%emt 0:00:05]} Nxg5+ {[%emt 0:00:07] Weighted Error Value: White=0.59/Black=0.09 (flawless)} 0-1